fUST/lending_fUST_20240311
["ID","MTS","AMOUNT","RATE_DAILY","PERIOD"]
[318148944,1710096647319,-1837.34,0.0002477,2]
[318148946,1710096647328,-1837.34,0.0002477,2]
[318148948,1710096647337,-1837.34,0.0002477,2]
[318148950,1710096647346,-1837.34,0.0002477,2]
[318148952,1710096647355,-1837.34,0.0002477,2]
[318148954,1710096647364,-1837.34,0.0002477,2]
[318148956,1710096647373,-1837.34,0.0002477,2]
[318148958,1710096647382,-1837.34,0.0002477,2]
[318148960,1710096647392,-1837.34,0.0002477,2]
[318148962,1710096647401,-1837.34,0.0002477,2]
[318148964,1710096647410,-244.29833739,0.0002477,2]
[318148966,1710096647421,-1593.06316611,0.0002477,2]
[318148968,1710096647431,-659.48742854,0.0002477,2]
[318148970,1710096647447,-1325.41257146,0.0002477,2]
[318148972,1710096647456,-1984.9,0.0002477,2]
[318148974,1710096647465,-1984.9,0.0002477,2]
[318148976,1710096647474,-1984.9,0.0002477,2]
[318148978,1710096647484,-1984.9,0.0002477,2]
[318148980,1710096647493,-1984.9,0.0002477,2]
[318148982,1710096647502,-1984.9,0.0002477,2]
[318148984,1710096647511,-1984.9,0.0002477,2]
[318148986,1710096647520,-1984.9,0.0002477,2]
[318148988,1710096647529,-1984.9,0.0002477,2]
[318148990,1710096647539,-1984.9,0.0002477,2]
[318148992,1710096647548,-1984.9,0.0002477,2]
[318148994,1710096647557,-1984.9,0.0002477,2]
[318148996,1710096647566,-1012.10047485,0.0002477,2]
[318148998,1710096647578,-500.49382646,0.0002477,2]
[318149555,1710096653138,2058.69519788,0.00019715,2]
[318149926,1710096656871,304.43807769,0.0002,5]
[318150413,1710096662447,288.29223005,0.00019715,2]
[318151567,1710096674797,158.61223847,0.0002,5]
[318153282,1710096692797,158.61223847,0.0002,5]
[318155331,1710096714796,158.61223847,0.0002,5]
[318157022,1710096734798,158.61223847,0.0002,5]
[318157323,1710096756850,158.61223847,0.0002,5]
[318157346,1710096776810,158.61223847,0.0002,5]
[318157459,1710096796848,158.61223847,0.0002,5]
[318157460,1710096816945,158.61223847,0.0002,5]
[318157461,1710096832815,158.61223847,0.0002,5]
[318157462,1710096854817,199.43188655,0.0002,5]
[318157463,1710097016908,160.0,0.0002,2]
[318157464,1710097024670,15944.6144633,0.0002,2]
[318157465,1710097046241,151.7119154,0.0002,2]
[318157466,1710097100833,152.08101338,0.000199,2]
[318157467,1710097182694,15949.72744915,0.000199,2]
[318157472,1710097200691,15949.72744915,0.000199,2]
[318157473,1710097218705,15949.72744915,0.000199,2]
[318157500,1710097238714,14442.39985106,0.000199,2]
[318157503,1710097265104,2153.35409686,0.00019171,2]
[318157781,1710097587483,650.34632116,0.000189,2]
[318157872,1710097738246,325.10159524,0.00020003,2]
[318157873,1710097746238,751.34456159,0.00020002,2]
[318157874,1710097754339,682.55292822,0.00020001,2]
[318157877,1710097763354,682.55292822,0.00020001,2]
[318157878,1710097771927,486.32237417,0.0002,2]
[318157879,1710097779856,336.69909941,0.00019999,2]
[318157880,1710097787989,1387.16301741,0.00019998,2]
[318157978,1710097838085,-336.69909941,0.00020196,2]
[318157980,1710097838095,-191.54405702,0.00020197,2]
[318157982,1710097838105,-294.77831715,0.00020197,2]
[318157984,1710097838114,-155.14739002,0.00020198,2]
[318157986,1710097838123,-682.55292822,0.00020198,2]
[318157988,1710097838132,-596.19717157,0.00020198,2]
[318157990,1710097838141,-325.10159524,0.00020199,2]
[318157992,1710097838150,-273.98795543,0.000202,2]
[318157995,1710097838161,-1746.57226733,0.000202,2]
[318157996,1710097838170,-811.89599639,0.00020234,2]
[318158135,1710097843296,-282.77322661,0.00020234,2]
[318158137,1710097843306,-186.175603,0.00020428,2]
[318158139,1710097843315,-175.201529,0.0002059,2]
[318158141,1710097843324,-228.25341127,0.00021066,2]
[318158143,1710097843334,-20367.52422429,0.00021165,2]
[318158145,1710097843346,-27289.26521141,0.00021165,2]
[318158148,1710097843357,-1539.35607599,0.00021166,2]
[318158150,1710097843369,-83.49465101,0.00021166,2]
[318158152,1710097843378,-228.25341127,0.0002197,2]
[318158154,1710097843387,-154.0,0.00022,2]
[318158156,1710097843397,-178.82999217,0.00022329,2]
[318158158,1710097843406,-500.0,0.00022329,2]
[318158160,1710097843415,-500.0,0.00022329,2]
[318158162,1710097843424,-500.0,0.00022329,2]
[318158164,1710097843434,-639.09676135,0.00022329,2]
[318158166,1710097843443,-500.0,0.00022329,2]
[318158168,1710097843452,-2598.2198964,0.0002233,2]
[318158170,1710097843461,-16634.5320767,0.00022334,2]
[318158172,1710097843471,-9876.45474995,0.00022667,2]
[318158174,1710097843480,-532.53683456,0.00022738,2]
[318158176,1710097843490,-410.5592422,0.00022738,2]
[318158178,1710097843500,-18328.2081942,0.00022739,2]
[318158180,1710097843509,-6785.06957953,0.00022871,3]
[318158182,1710097843519,-228.25341127,0.00022874,2]
[318158184,1710097843528,-154.0,0.00023014,2]
[318158186,1710097843538,-228.25341127,0.00023777,2]
[318158188,1710097843547,-650.34632116,0.000239,2]
[318158190,1710097843557,-188.54652411,0.00024,4]
[318158192,1710097843566,-539.0,0.00024,2]
[318158194,1710097843575,-2000.0,0.000241,6]
[318158196,1710097843584,-499.53634699,0.00024109,2]
[318158197,1710097843593,-2000.0,0.0002411,6]
[318158200,1710097843603,-2000.0,0.0002412,6]
[318158202,1710097843612,-2000.0,0.0002413,6]
[318158203,1710097843622,-2000.0,0.0002414,6]
[318158205,1710097843632,-2000.0,0.0002415,6]
[318158206,1710097843642,-155.0,0.00024164,2]
[318158207,1710097843651,-500.0,0.00024657,2]
[318158208,1710097843661,-400.55870816,0.00024658,2]
[318158209,1710097843671,-228.25341127,0.00024681,2]
[318158210,1710097843680,-2391.05230903,0.00024721,2]
[318158211,1710097843689,-230.0,0.0002476,19]
[318158212,1710097843698,-500.0,0.00024761,2]
[318158213,1710097843707,-500.0,0.00024761,2]
[318158214,1710097843717,-1000.0,0.00024761,2]
[318158215,1710097843726,-500.0,0.00024761,2]
[318158216,1710097843736,-356.79463342,0.00024761,2]
[318158217,1710097843745,-500.0,0.00024761,2]
[318158218,1710097843758,-500.0,0.00024761,2]
[318158219,1710097843767,-500.0,0.00024761,2]
[318158220,1710097843778,-373.59,0.00024761,2]
[318158221,1710097843787,-500.0,0.00024761,2]
[318158222,1710097843806,-500.0,0.00024761,2]
[318158223,1710097843817,-229.33999623,0.00024761,2]
[318158224,1710097843827,-500.0,0.00024761,2]
[318158226,1710097843838,-500.0,0.00024761,2]
[318158228,1710097843848,-420.38793376,0.00024761,2]
[318158230,1710097843858,-295.48679084,0.00024761,2]
[318158232,1710097843868,-160.0,0.00024769,2]
[318158234,1710097843878,-15244.78488328,0.0002477,2]
[318158236,1710097843889,-155.36042613,0.00024773,2]
[318158238,1710097843898,-183.4020858,0.00024773,2]
[318158240,1710097843907,-966.01360658,0.00024773,2]
[318158242,1710097843917,-223.99828335,0.00024773,2]
[318158244,1710097843926,-270.23601369,0.00024773,2]
[318158246,1710097843936,-157.3240075,0.00024773,2]
[318158249,1710097843946,-155.1520413,0.00024774,2]
[318158251,1710097843955,-204.87491484,0.00024774,2]
[318158253,1710097843965,-886.1383934,0.00024774,2]
[318158255,1710097843974,-4356.64707402,0.00024774,2]
[318158257,1710097843984,-334.93497172,0.00024774,2]
[318158259,1710097843993,-159.83385499,0.00024777,2]
[318158261,1710097844003,-500.0,0.00024777,2]
[318158263,1710097844012,-1000.0,0.0002478,7]
[318158265,1710097844021,-2919.67,0.0002478,2]
[318158267,1710097844031,-2919.67,0.0002478,2]
[318158269,1710097844040,-2919.67,0.0002478,2]
[318158271,1710097844052,-2919.67,0.0002478,2]
[318158273,1710097844061,-2919.67,0.0002478,2]
[318158275,1710097844071,-2919.67,0.0002478,2]
[318158277,1710097844080,-211.97574014,0.00024781,2]
[318158279,1710097844089,-524.29941204,0.00024781,2]
[318158281,1710097844098,-1297.56472994,0.00024781,2]
[318158283,1710097844108,-624.13231565,0.00024781,2]
[318158285,1710097844119,-163.32544229,0.00024781,2]
[318158287,1710097844128,-245.98065434,0.00024781,2]
[318158289,1710097844138,-170.25466794,0.00024781,2]
[318158291,1710097844148,-347.77838108,0.00024781,2]
[318158293,1710097844157,-256.16650602,0.00024781,2]
[318158295,1710097844167,-538.93657172,0.00024781,2]
[318158297,1710097844177,-155.13807288,0.00024781,2]
[318158299,1710097844186,-1222.6519772,0.00024781,2]
[318158301,1710097844196,-436.36872179,0.00024781,2]
[318158303,1710097844205,-500.0,0.00024781,2]
[318158305,1710097844214,-500.0,0.00024781,2]
[318158307,1710097844224,-500.0,0.00024781,2]
[318158309,1710097844233,-500.0,0.00024781,2]
[318158311,1710097844242,-500.0,0.00024781,2]
[318158313,1710097844252,-500.0,0.00024781,2]
[318158315,1710097844262,-500.0,0.00024781,2]
[318158317,1710097844271,-500.0,0.00024781,2]
[318158319,1710097844281,-500.0,0.00024781,2]
[318158321,1710097844290,-500.0,0.00024781,2]
[318158323,1710097844300,-500.0,0.00024781,2]
[318158325,1710097844309,-500.0,0.00024781,2]
[318158327,1710097844319,-500.0,0.00024781,2]
[318158329,1710097844329,-500.0,0.00024781,2]
[318158331,1710097844338,-500.0,0.00024781,2]
[318158333,1710097844348,-880.53,0.00024781,2]
[318158335,1710097844358,-880.53,0.00024781,2]
[318158337,1710097844367,-880.53,0.00024781,2]
[318158339,1710097844376,-880.53,0.00024781,2]
[318158341,1710097844385,-880.53,0.00024781,2]
[318158343,1710097844395,-500.0,0.00024781,2]
[318158345,1710097844404,-355.66068189,0.00024781,2]
[318158347,1710097844413,-500.0,0.00024781,2]
[318158349,1710097844423,-500.0,0.00024781,2]
[318158351,1710097844432,-500.0,0.00024781,2]
[318158353,1710097844441,-500.0,0.00024781,2]
[318158355,1710097844451,-500.0,0.00024781,2]
[318158357,1710097844460,-500.0,0.00024781,2]
[318158359,1710097844468,-500.0,0.00024781,2]
[318158361,1710097844478,-500.0,0.00024781,2]
[318158363,1710097844487,-500.0,0.00024781,2]
[318158365,1710097844497,-187.37706428,0.00024781,2]
[318158367,1710097844506,-500.0,0.00024781,2]
[318158369,1710097844515,-500.0,0.00024781,2]
[318158371,1710097844524,-500.0,0.00024781,2]
[318158373,1710097844533,-445.41447254,0.00024781,2]
[318158375,1710097844542,-485.1083641,0.00024781,2]
[318158377,1710097844551,-500.0,0.00024781,2]
[318158379,1710097844560,-500.0,0.00024781,2]
[318158381,1710097844570,-151.0,0.00024781,2]
[318158383,1710097844579,-500.0,0.00024781,2]
[318158385,1710097844589,-500.0,0.00024781,2]
[318158387,1710097844598,-500.0,0.00024781,2]
[318158389,1710097844608,-500.0,0.00024781,2]
[318158391,1710097844617,-500.0,0.00024781,2]
[318158393,1710097844627,-500.0,0.00024781,2]
[318158395,1710097844636,-500.0,0.00024781,2]
[318158397,1710097844645,-500.0,0.00024781,2]
[318158399,1710097844654,-500.0,0.00024781,2]
[318158401,1710097844663,-500.0,0.00024781,2]
[318158403,1710097844673,-500.0,0.00024781,2]
[318158405,1710097844682,-500.0,0.00024781,2]
[318158407,1710097844691,-500.0,0.00024781,2]
[318158409,1710097844700,-500.0,0.00024781,2]
[318158411,1710097844709,-500.0,0.00024781,2]
[318158413,1710097844718,-500.0,0.00024781,2]
[318158415,1710097844727,-500.0,0.00024781,2]
[318158417,1710097844737,-500.0,0.00024781,2]
[318158419,1710097844746,-500.0,0.00024781,2]
[318158421,1710097844758,-500.0,0.00024781,2]
[318158423,1710097844768,-500.0,0.00024781,2]
[318158425,1710097844777,-500.0,0.00024781,2]
[318158427,1710097844786,-500.0,0.00024781,2]
[318158429,1710097844795,-500.0,0.00024781,2]
[318158431,1710097844804,-500.0,0.00024781,2]
[318158433,1710097844813,-500.0,0.00024781,2]
[318158446,1710097844924,-500.0,0.00024781,2]
[318158448,1710097844934,-5224.02,0.00024781,2]
[318158450,1710097844943,-5224.02,0.00024781,2]
[318158452,1710097844952,-5224.02,0.00024781,2]
[318158454,1710097844961,-5224.02,0.00024781,2]
[318158456,1710097844970,-5224.02,0.00024781,2]
[318158458,1710097844979,-5224.02,0.00024781,2]
[318158460,1710097844988,-5224.02,0.00024781,2]
[318158462,1710097844997,-5224.02,0.00024781,2]
[318158464,1710097845007,-5224.02,0.00024781,2]
[318158466,1710097845017,-5224.02,0.00024781,2]
[318158468,1710097845027,-5224.02,0.00024781,2]
[318158469,1710097845036,-5224.02,0.00024781,2]
[318158471,1710097845045,-500.0,0.00024781,2]
[318158474,1710097845054,-500.0,0.00024781,2]
[318158475,1710097845063,-500.0,0.00024781,2]
[318158477,1710097845073,-500.0,0.00024781,2]
[318158479,1710097845082,-500.0,0.00024781,2]
[318158481,1710097845091,-500.0,0.00024781,2]
[318158483,1710097845100,-500.0,0.00024781,2]
[318158485,1710097845110,-500.0,0.00024781,2]
[318158487,1710097845119,-500.0,0.00024781,2]
[318158489,1710097845129,-500.0,0.00024781,2]
[318158491,1710097845138,-500.0,0.00024781,2]
[318158493,1710097845147,-538.99124437,0.00024781,2]
[318158495,1710097845155,-500.0,0.00024781,2]
[318158498,1710097845165,-500.0,0.00024781,2]
[318158500,1710097845174,-500.0,0.00024781,2]
[318158501,1710097845183,-500.0,0.00024781,2]
[318158503,1710097845192,-500.0,0.00024781,2]
[318158505,1710097845201,-500.0,0.00024781,2]
[318158508,1710097845210,-500.0,0.00024781,2]
[318158510,1710097845220,-500.0,0.00024781,2]
[318158512,1710097845229,-565.02611048,0.00024781,2]
[318158514,1710097845238,-500.0,0.00024781,2]
[318158515,1710097845247,-500.0,0.00024781,2]
[318158517,1710097845256,-500.0,0.00024781,2]
[318158520,1710097845267,-239.38306776,0.00024781,2]
[318158522,1710097845276,-1028.05,0.00024781,2]
[318158524,1710097845285,-1028.05,0.00024781,2]
[318158526,1710097845294,-1028.05,0.00024781,2]
[318158528,1710097845303,-1028.05,0.00024781,2]
[318158530,1710097845312,-1028.05,0.00024781,2]
[318158532,1710097845321,-1028.05,0.00024781,2]
[318158534,1710097845330,-500.0,0.00024781,2]
[318158536,1710097845339,-1028.05,0.00024781,2]
[318158538,1710097845349,-500.0,0.00024781,2]
[318158540,1710097845359,-1028.05,0.00024781,2]
[318158542,1710097845368,-500.0,0.00024781,2]
[318158544,1710097845377,-1028.05,0.00024781,2]
[318158546,1710097845386,-445.0911672,0.00024781,2]
[318158548,1710097845395,-1028.05,0.00024781,2]
[318158550,1710097845404,-1028.05,0.00024781,2]
[318158552,1710097845413,-1028.05,0.00024781,2]
[318158554,1710097845422,-2924.05,0.00024781,2]
[318158556,1710097845431,-2924.05,0.00024781,2]
[318158558,1710097845440,-2924.05,0.00024781,2]
[318158560,1710097845450,-2924.05,0.00024781,2]
[318158562,1710097845459,-2924.05,0.00024781,2]
[318158564,1710097845468,-2924.05,0.00024781,2]
[318158565,1710097845477,-2924.05,0.00024781,2]
[318158568,1710097845487,-2924.05,0.00024781,2]
[318158569,1710097845496,-500.0,0.00024781,2]
[318158572,1710097845505,-2924.05,0.00024781,2]
[318158574,1710097845515,-500.0,0.00024781,2]
[318158576,1710097845524,-2924.05,0.00024781,2]
[318158577,1710097845534,-500.0,0.00024781,2]
[318158580,1710097845544,-2924.05,0.00024781,2]
[318158582,1710097845554,-500.0,0.00024781,2]
[318158584,1710097845563,-2924.05,0.00024781,2]
[318158586,1710097845572,-500.0,0.00024781,2]
[318158588,1710097845581,-500.0,0.00024781,2]
[318158589,1710097845590,-500.0,0.00024781,2]
[318158592,1710097845600,-500.0,0.00024781,2]
[318158593,1710097845609,-500.0,0.00024781,2]
[318158595,1710097845618,-500.0,0.00024781,2]
[318158597,1710097845628,-500.0,0.00024781,2]
[318158599,1710097845637,-500.0,0.00024781,2]
[318158601,1710097845646,-2919.67,0.00024781,2]
[318158602,1710097845655,-2919.67,0.00024781,2]
[318158604,1710097845665,-2919.67,0.00024781,2]
[318158606,1710097845674,-2919.67,0.00024781,2]
[318158607,1710097845683,-2919.67,0.00024781,2]
[318158609,1710097845691,-2919.67,0.00024781,2]
[318158612,1710097845700,-500.0,0.00024782,2]
[318158615,1710097845709,-500.0,0.00024782,2]
[318158617,1710097845717,-500.0,0.00024782,2]
[318158620,1710097845726,-500.0,0.00024782,2]
[318158623,1710097845737,-340.47845287,0.00024782,2]
[318158626,1710097845746,-500.0,0.00024782,2]
[318158629,1710097845759,-500.0,0.00024782,2]
[318158631,1710097845768,-500.0,0.00024782,2]
[318158633,1710097845777,-500.0,0.00024782,2]
[318158636,1710097845787,-500.0,0.00024782,2]
[318158638,1710097845795,-500.0,0.00024782,2]
[318158639,1710097845806,-500.0,0.00024782,2]
[318158641,1710097845815,-500.0,0.00024782,2]
[318158644,1710097845824,-588.81,0.00024782,2]
[318158645,1710097845835,-500.0,0.00024782,2]
[318158648,1710097845845,-466.96464,0.00024782,2]
[318158650,1710097845855,-880.53,0.00024782,2]
[318158651,1710097845864,-880.53,0.00024782,2]
[318158653,1710097845873,-880.53,0.00024782,2]
[318158656,1710097845882,-880.53,0.00024782,2]
[318158659,1710097845891,-880.53,0.00024782,2]
[318158661,1710097845900,-880.53,0.00024782,2]
[318158664,1710097845908,-880.53,0.00024782,2]
[318158667,1710097845916,-880.53,0.00024782,2]
[318158669,1710097845925,-880.53,0.00024782,2]
[318158671,1710097845935,-880.53,0.00024782,2]
[318158674,1710097845944,-880.53,0.00024782,2]
[318158677,1710097845953,-880.53,0.00024782,2]
[318158679,1710097845962,-880.53,0.00024782,2]
[318158682,1710097845971,-880.53,0.00024782,2]
[318158685,1710097845981,-880.53,0.00024782,2]
[318158688,1710097845990,-880.53,0.00024782,2]
[318158690,1710097845999,-880.53,0.00024782,2]
[318158693,1710097846008,-880.53,0.00024782,2]
[318158696,1710097846018,-880.563,0.00024782,2]
[318158699,1710097846027,-151.0,0.00024782,2]
[318158701,1710097846036,-151.0,0.00024782,2]
[318158704,1710097846046,-151.0,0.00024782,2]
[318158707,1710097846055,-151.0,0.00024782,2]
[318158710,1710097846064,-500.0,0.00024782,2]
[318158713,1710097846073,-500.0,0.00024782,2]
[318158715,1710097846082,-234.658285,0.00024782,2]
[318158717,1710097846090,-500.0,0.00024782,2]
[318158719,1710097846099,-500.0,0.00024782,2]
[318158720,1710097846109,-500.0,0.00024782,2]
[318158722,1710097846118,-500.0,0.00024782,2]
[318158724,1710097846127,-345.76984606,0.00024782,2]
[318158726,1710097846136,-500.0,0.00024782,2]
[318158727,1710097846145,-500.0,0.00024782,2]
[318158729,1710097846155,-500.0,0.00024782,2]
[318158731,1710097846164,-240.60086643,0.00024782,2]
[318158733,1710097846173,-501.31616849,0.00024782,2]
[318158735,1710097846182,-500.0,0.00024782,2]
[318158736,1710097846191,-500.0,0.00024782,2]
[318158738,1710097846201,-500.0,0.00024782,2]
[318158740,1710097846210,-500.0,0.00024782,2]
[318158742,1710097846219,-500.0,0.00024782,2]
[318158743,1710097846227,-500.0,0.00024782,2]
[318158745,1710097846236,-500.0,0.00024782,2]
[318158747,1710097846245,-427.04976522,0.00024782,2]
[318158749,1710097846255,-3941.83631875,0.00024783,2]
[318158750,1710097846264,-327.45198075,0.00024783,2]
[318158752,1710097846274,-160.19387848,0.00024783,2]
[318158754,1710097846283,-312.41642479,0.00024783,2]
[318158756,1710097846292,-321.85,0.00024784,2]
[318158758,1710097846302,-321.85,0.00024784,2]
[318158759,1710097846312,-321.85,0.00024784,2]
[318158761,1710097846322,-321.85,0.00024784,2]
[318158763,1710097846332,-321.85,0.00024784,2]
[318158765,1710097846341,-321.85,0.00024784,2]
[318158766,1710097846351,-276.84141771,0.00024785,3]
[318158768,1710097846361,-500.0,0.00024785,2]
[318158770,1710097846371,-500.0,0.00024785,2]
[318158772,1710097846380,-500.0,0.00024785,2]
[318158774,1710097846390,-500.0,0.00024785,2]
[318158776,1710097846399,-500.0,0.00024785,2]
[318158777,1710097846408,-500.0,0.00024785,2]
[318158779,1710097846418,-500.0,0.00024785,2]
[318158781,1710097846430,-5224.02,0.00024785,2]
[318158783,1710097846439,-5224.02,0.00024785,2]
[318158785,1710097846448,-5224.02,0.00024785,2]
[318158787,1710097846457,-5224.02,0.00024785,2]
[318158789,1710097846467,-5224.02,0.00024785,2]
[318158790,1710097846476,-5224.02,0.00024785,2]
[318158792,1710097846485,-5224.02,0.00024785,2]
[318158794,1710097846495,-5224.02,0.00024785,2]
[318158796,1710097846504,-5224.02,0.00024785,2]
[318158798,1710097846514,-5224.02,0.00024785,2]
[318158799,1710097846523,-5224.02,0.00024785,2]
[318158801,1710097846533,-5224.14802082,0.00024785,2]
[318158803,1710097846542,-1028.05,0.00024785,2]
[318158805,1710097846552,-1028.05,0.00024785,2]
[318158807,1710097846561,-1028.05,0.00024785,2]
[318158809,1710097846570,-1028.05,0.00024785,2]
[318158811,1710097846580,-1028.05,0.00024785,2]
[318158812,1710097846589,-1028.05,0.00024785,2]
[318158814,1710097846598,-1028.05,0.00024785,2]
[318158816,1710097846607,-1028.05,0.00024785,2]
[318158818,1710097846616,-1028.05,0.00024785,2]
[318158820,1710097846624,-1028.05,0.00024785,2]
[318158821,1710097846633,-1028.05,0.00024785,2]
[318158823,1710097846642,-1028.11739524,0.00024785,2]
[318158825,1710097846652,-2924.05,0.00024785,2]
[318158827,1710097846662,-2924.05,0.00024785,2]
[318158829,1710097846672,-2924.05,0.00024785,2]
[318158831,1710097846681,-2924.05,0.00024785,2]
[318158832,1710097846690,-2924.05,0.00024785,2]
[318158834,1710097846699,-2924.05,0.00024785,2]
[318158836,1710097846708,-2924.05,0.00024785,2]
[318158838,1710097846717,-2924.05,0.00024785,2]
[318158839,1710097846726,-500.0,0.00024785,2]
[318158841,1710097846736,-2924.05,0.00024785,2]
[318158843,1710097846746,-500.0,0.00024785,2]
[318158845,1710097846757,-2924.05,0.00024785,2]
[318158847,1710097846766,-2924.05,0.00024785,2]
[318158849,1710097846775,-500.0,0.00024785,2]
[318158850,1710097846785,-2924.05,0.00024785,2]
[318158852,1710097846795,-500.0,0.00024785,2]
[318158854,1710097846804,-500.0,0.00024785,2]
[318158856,1710097846814,-500.0,0.00024785,2]
[318158858,1710097846823,-476.68417691,0.00024785,2]
[318158860,1710097846833,-2919.67,0.00024785,2]
[318158862,1710097846842,-217.32045131,0.00024785,2]
[318158863,1710097846851,-527.14947298,0.00024785,2]
[318158865,1710097846861,-1288.73245079,0.00024785,2]
[318158867,1710097846870,-153.0,0.000248,2]
[318158869,1710097846880,-153.0,0.000248,2]
[318158871,1710097846889,-153.0,0.000248,2]
[318158872,1710097846897,-153.0,0.000248,2]
[318158874,1710097846906,-153.0,0.000248,2]
[318158876,1710097846916,-153.0,0.000248,2]
[318158878,1710097846926,-272.6689743,0.000248,2]
[318158880,1710097846935,-180.429772,0.00024813,2]
[318158882,1710097846944,-2919.67,0.0002482,2]
[318158884,1710097846953,-2919.67,0.0002482,2]
[318158885,1710097846962,-2919.67,0.0002482,2]
[318158887,1710097846971,-2919.67,0.0002482,2]
[318158889,1710097846980,-2919.67,0.0002482,2]
[318158891,1710097846990,-2919.67,0.0002482,2]
[318158893,1710097846999,-2919.67,0.0002482,2]
[318158894,1710097847008,-2919.67,0.0002482,2]
[318158896,1710097847017,-2919.67,0.0002482,2]
[318158898,1710097847027,-2919.67,0.0002482,2]
[318158900,1710097847036,-2919.83659473,0.0002482,2]
[318158902,1710097847046,-75166.60937742,0.00024821,60]
[318158907,1710097847094,-64772.51833544,0.00024821,60]
[318158909,1710097847106,-132800.0,0.00024821,60]
[318158912,1710097847129,-20716.59004639,0.00024821,60]
[318158915,1710097847153,-553.90707258,0.00024821,60]
[318158965,1710097847719,-36043.91501383,0.00024821,60]
[318164587,1710098409721,716.25020102,0.00019657,2]
[318164595,1710098793062,395.2906565,0.000189,2]
[318164596,1710098849015,1000.0,0.0002046,60]
[318164612,1710098871863,563556.53079191,0.00020465,60]
[318164613,1710098871892,12618.13518232,0.00020465,60]
[318164614,1710098871917,23978.0,0.00020465,60]
[318164615,1710098871941,23054.0,0.00020465,60]
[318164616,1710098871964,95733.0,0.00020465,60]
[318164617,1710098871993,35970.0,0.00020465,60]
[318164618,1710098872018,26896.0,0.00020465,60]
[318164619,1710098872045,37772.0,0.00020465,60]
[318164620,1710098872070,175.0,0.00020465,60]
[318164621,1710098872089,195.0,0.00020465,60]
[318164622,1710098872109,4133.69058974,0.00020465,60]
[318164623,1710098872136,174918.64343603,0.00020465,60]
[318164695,1710099032375,-682.55292822,0.00020458,2]
[318164697,1710099032385,-294.77831715,0.00020459,2]
[318164699,1710099032395,-837.17214145,0.00020459,2]
[318164701,1710099032407,-1183.38808131,0.00020459,2]
[318164703,1710099032417,-737.43271216,0.00020462,2]
[318164705,1710099032426,-547.334611,0.00020475,2]
[318164707,1710099032435,-624.81251005,0.0002064,2]
[318164709,1710099032444,-620.2406255,0.00021672,2]
[318164711,1710099032453,-9717.1882869,0.00021912,2]
[318164713,1710099032463,-167.0,0.00022,2]
[318164715,1710099032472,-167.0,0.00022192,2]
[318164717,1710099032482,-24900.0,0.0002221,2]
[318164719,1710099032491,-176.787706,0.00022441,2]
[318164721,1710099032501,-620.01203128,0.00022756,2]
[318164723,1710099032510,-167.0,0.00023014,2]
[318164725,1710099032519,-154.752194,0.00023521,2]
[318164727,1710099032528,-166.276254,0.00023521,2]
[318164729,1710099032537,-336.05590145,0.00023578,2]
[318164731,1710099032546,-620.00060156,0.00023893,2]
[318164732,1710099032555,-395.2906565,0.000239,2]
[318164733,1710099032565,-200.7835274,0.00024,2]
[318164734,1710099032575,-153.0,0.00024078,2]
[318164735,1710099032584,-153.0,0.00024078,2]
[318164736,1710099032593,-153.0,0.00024078,2]